fUSD/lending_fUSD_20250105
["ID","MTS","AMOUNT","RATE_DAILY","PERIOD"]
[347736343,1736087454141,-652.36,8.767e-05,2]
[347736344,1736087454153,-982.16,8.767e-05,2]
[347736345,1736087454164,-500.0,8.767e-05,2]
[347736346,1736087454175,-500.0,8.767e-05,2]
[347736347,1736087454186,-926.05,8.767e-05,2]
[347736348,1736087454197,-1594.81,8.767e-05,2]
[347736349,1736087454208,-676.75,8.767e-05,2]
[347736350,1736087454220,-1315.68,8.767e-05,2]
[347736351,1736087454231,-677.8,8.767e-05,2]
[347736352,1736087454242,-2577.87,8.767e-05,2]
[347736353,1736087454254,-500.0,8.767e-05,2]
[347736354,1736087454266,-1785.83,8.767e-05,2]
[347736355,1736087454276,-749.64,8.767e-05,2]
[347736356,1736087454287,-1591.99,8.767e-05,2]
[347736357,1736087454298,-665.75,8.767e-05,2]
[347736358,1736087454310,-500.0,8.767e-05,2]
[347736359,1736087454321,-697.79,8.767e-05,2]
[347736360,1736087454332,-1315.89,8.767e-05,2]
[347736361,1736087454343,-500.0,8.767e-05,2]
[347736362,1736087454356,-1730.96,8.767e-05,2]
[347736363,1736087454367,-500.0,8.767e-05,2]
[347736364,1736087454377,-1071.44,8.767e-05,2]
[347736365,1736087454388,-1369.17,8.767e-05,2]
[347736366,1736087454399,-500.0,8.767e-05,2]
[347736367,1736087454410,-1027.49,8.767e-05,2]
[347736368,1736087454421,-500.0,8.767e-05,2]
[347736369,1736087454431,-780.04,8.767e-05,2]
[347736370,1736087454442,-500.0,8.767e-05,2]
[347736371,1736087454453,-500.0,8.767e-05,2]
[347736372,1736087454464,-500.0,8.767e-05,2]
[347736373,1736087454475,-714.9,8.767e-05,2]
[347736374,1736087454486,-500.0,8.767e-05,2]
[347736375,1736087454496,-761.44,8.767e-05,2]
[347736376,1736087454507,-654.93,8.767e-05,2]
[347736377,1736087454518,-4721.47,8.767e-05,2]
[347736378,1736087454528,-424.67654648,8.767e-05,2]
[347736379,1736087454539,-1241.25,8.767e-05,2]
[347736380,1736087454549,-500.0,8.767e-05,2]
[347736381,1736087454560,-1218.9,8.767e-05,2]
[347736382,1736087454571,-500.0,8.767e-05,2]
[347736383,1736087454581,-500.0,8.767e-05,2]
[347736384,1736087454591,-500.0,8.767e-05,2]
[347736385,1736087454603,-2665.79,8.767e-05,2]
[347736386,1736087454614,-760.67,8.767e-05,2]
[347736387,1736087454625,-500.0,8.767e-05,2]
[347736388,1736087454635,-4518.88,8.767e-05,2]
[347736389,1736087454646,-500.0,8.767e-05,2]
[347736390,1736087454658,-500.0,8.767e-05,2]
[347736391,1736087454668,-971.8,8.767e-05,2]
[347736392,1736087454678,-500.0,8.767e-05,2]
[347736393,1736087454688,-748.36,8.767e-05,2]
[347736394,1736087454698,-1454.08,8.767e-05,2]
[347736395,1736087454708,-632.83,8.767e-05,2]
[347736396,1736087454719,-3596.85,8.767e-05,2]
[347736397,1736087454729,-1144.8,8.767e-05,2]
[347736398,1736087454740,-3009.84,8.767e-05,2]
[347736399,1736087454750,-1306.84,8.767e-05,2]
[347736400,1736087454764,-1172.62,8.767e-05,2]
[347736401,1736087454774,-1053.43,8.767e-05,2]
[347736402,1736087454785,-2149.95,8.767e-05,2]
[347736403,1736087454795,-4867.27,8.767e-05,2]
[347736404,1736087454806,-956.06,8.767e-05,2]
[347736405,1736087454816,-3847.94,8.767e-05,2]
[347736406,1736087454826,-745.14,8.767e-05,2]
[347736407,1736087454836,-928.53,8.767e-05,2]
[347736408,1736087454849,-573.78,8.767e-05,2]
[347736409,1736087454860,-1744.35,8.767e-05,2]
[347736410,1736087454870,-917.07,8.767e-05,2]
[347736411,1736087454883,-3460.52,8.767e-05,2]
[347736412,1736087454894,-12077.17,8.767e-05,2]
[347736413,1736087454906,-500.0,8.767e-05,2]
[347736414,1736087454916,-1712.07,8.767e-05,2]
[347736415,1736087454926,-1317.55,8.767e-05,2]
[347736416,1736087454938,-4603.7,8.767e-05,2]
[347736417,1736087454950,-586.81,8.767e-05,2]
[347736418,1736087454961,-7134.1,8.767e-05,2]
[347736419,1736087454972,-2511.05,8.767e-05,2]
[347736420,1736087454983,-1211.2,8.767e-05,2]
[347736421,1736087454994,-3861.99,8.767e-05,2]
[347736422,1736087455005,-766.97,8.767e-05,2]
[347736423,1736087455016,-500.0,8.767e-05,2]
[347736424,1736087455028,-1929.34,8.767e-05,2]
[347736425,1736087455039,-1125.8,8.767e-05,2]
[347736426,1736087455049,-5390.32,8.767e-05,2]
[347736427,1736087455059,-841.04,8.767e-05,2]
[347736428,1736087455069,-1134.92,8.767e-05,2]
[347736429,1736087455080,-805.42,8.767e-05,2]
[347736430,1736087455090,-569.83,8.767e-05,2]
[347736431,1736087455102,-6872.1,8.767e-05,2]
[347736432,1736087455112,-521.77,8.767e-05,2]
[347736433,1736087455123,-2538.04,8.767e-05,2]
[347736434,1736087455133,-1929.3,8.767e-05,2]
[347736435,1736087455143,-198.39,8.767e-05,2]
[347736436,1736087455154,-942.19,8.767e-05,2]
[347736437,1736087455165,-2963.68,8.767e-05,2]
[347736438,1736087455176,-500.0,8.767e-05,2]
[347736439,1736087455186,-3891.85,8.767e-05,2]
[347736440,1736087455197,-1405.3,8.767e-05,2]
[347736441,1736087455208,-1395.54,8.767e-05,2]
[347736442,1736087455219,-945.67,8.767e-05,2]
[347736443,1736087455229,-500.0,8.767e-05,2]
[347736444,1736087455240,-1847.98,8.767e-05,2]
[347736445,1736087455250,-1808.06,8.767e-05,2]
[347736446,1736087455261,-500.0,8.767e-05,2]
[347736447,1736087455271,-5368.34,8.767e-05,2]
[347736448,1736087455284,-5006.82,8.767e-05,2]
[347736449,1736087455294,-500.0,8.767e-05,2]
[347736450,1736087455305,-650.58,8.767e-05,2]
[347736451,1736087455316,-3111.48,8.767e-05,2]
[347736452,1736087455326,-1773.48,8.767e-05,2]
[347736453,1736087455336,-6404.36,8.767e-05,2]
[347736454,1736087455350,-901.65,8.767e-05,2]
[347736455,1736087455360,-2824.28,8.767e-05,2]
[347736456,1736087455371,-5155.77,8.767e-05,2]
[347736457,1736087455381,-3443.73,8.767e-05,2]
[347736458,1736087455391,-1458.21,8.767e-05,2]
[347736459,1736087455401,-748.88,8.767e-05,2]
[347736460,1736087455411,-1521.28,8.767e-05,2]
[347736461,1736087455422,-2067.6,8.767e-05,2]
[347736462,1736087455432,-5645.3,8.767e-05,2]
[347736463,1736087455446,-1159.91,8.767e-05,2]
[347736464,1736087455456,-555.26,8.767e-05,2]
[347736465,1736087455467,-2759.01,8.767e-05,2]
[347736466,1736087455477,-1115.77,8.767e-05,2]
[347736467,1736087455487,-1223.55,8.767e-05,2]
[347736468,1736087455497,-2364.91,8.767e-05,2]
[347736469,1736087455507,-3061.12,8.767e-05,2]
[347736470,1736087455518,-1106.77,8.767e-05,2]
[347736471,1736087455529,-1536.35,8.767e-05,2]
[347736472,1736087455539,-879.52,8.767e-05,2]
[347736473,1736087455549,-506.04,8.767e-05,2]
[347736474,1736087455560,-699.73,8.767e-05,2]
[347736475,1736087455570,-1123.2,8.767e-05,2]
[347736476,1736087455580,-2186.84,8.767e-05,2]
[347736477,1736087455590,-500.0,8.767e-05,2]
[347736478,1736087455602,-1485.74,8.767e-05,2]
[347736479,1736087455611,-662.65,8.767e-05,2]
[347736480,1736087455621,-2310.84,8.767e-05,2]
[347736481,1736087455631,-732.61,8.767e-05,2]
[347736482,1736087455641,-1449.67,8.767e-05,2]
[347736483,1736087455651,-1510.38,8.767e-05,2]
[347736484,1736087455662,-1624.68,8.767e-05,2]
[347736485,1736087455672,-1317.06,8.767e-05,2]
[347736486,1736087455683,-818.3,8.767e-05,2]
[347736487,1736087455693,-565.58,8.767e-05,2]
[347736488,1736087455704,-500.0,8.767e-05,2]
[347736489,1736087455714,-1328.64,8.767e-05,2]
[347736490,1736087455724,-732.45,8.767e-05,2]
[347736491,1736087455735,-500.0,8.767e-05,2]
[347736492,1736087455745,-2550.53,8.767e-05,2]
[347736493,1736087455759,-882.95,8.767e-05,2]
[347736494,1736087456086,-1751.15,8.767e-05,2]
[347736495,1736087456106,-533.7,8.767e-05,2]
[347736496,1736087456117,-864.64,8.767e-05,2]
[347736497,1736087456127,-1774.07,8.767e-05,2]
[347736498,1736087456138,-2874.65,8.767e-05,2]
[347736499,1736087456148,-800.29,8.767e-05,2]
[347736500,1736087456159,-877.13,8.767e-05,2]
[347736501,1736087456169,-577.28,8.767e-05,2]
[347736502,1736087456179,-1180.17,8.767e-05,2]
[347736503,1736087456190,-500.0,8.767e-05,2]
[347736504,1736087456201,-1073.55,8.767e-05,2]
[347736505,1736087456212,-4347.54,8.767e-05,2]
[347736506,1736087456222,-1014.49,8.767e-05,2]
[347736507,1736087456232,-1330.12,8.767e-05,2]
[347736508,1736087456243,-1436.65,8.767e-05,2]
[347736509,1736087456254,-600.32,8.767e-05,2]
[347736510,1736087456264,-1657.93,8.767e-05,2]
[347736511,1736087456274,-599.67,8.767e-05,2]
[347736512,1736087456284,-1031.98,8.767e-05,2]
[347736513,1736087456294,-686.4,8.767e-05,2]
[347736514,1736087456305,-510.0105,8.767e-05,2]
[347736515,1736087456315,-1746.76,8.767e-05,2]
[347736516,1736087456325,-2025.86,8.767e-05,2]
[347736517,1736087456335,-771.32,8.767e-05,2]
[347736518,1736087456347,-1216.52,8.767e-05,2]
[347736519,1736087456357,-6253.84761186,8.77e-05,2]
[347736520,1736087456369,-150.0,8.822e-05,2]
[347736521,1736087456379,-150.0,8.822e-05,2]
[347736522,1736087456389,-469.9,8.826e-05,2]
[347736523,1736087456399,-150.0,8.843e-05,2]
[347736524,1736087456409,-150.0,8.95e-05,2]
[347736525,1736087456419,-150.0,8.95e-05,2]
[347736526,1736087456429,-420.0,9.006e-05,2]
[347736527,1736087456439,-150.0,9.014e-05,2]
[347736528,1736087456450,-150.0,9.014e-05,2]
[347736529,1736087456460,-1575.0,9.014e-05,2]
[347736530,1736087456470,-500.0,9.04e-05,2]
[347736531,1736087456480,-500.0,9.04e-05,2]
[347736532,1736087456490,-539.14,9.04e-05,2]
[347736533,1736087456499,-518.9838584,9.04e-05,2]
[347736534,1736087456509,-554.11,9.04e-05,2]
[347736535,1736087456519,-500.0,9.04e-05,2]
[347736536,1736087456529,-633.48,9.04e-05,2]
[347736537,1736087456539,-500.0,9.04e-05,2]
[347736538,1736087456549,-549.43,9.04e-05,2]
[347736539,1736087456559,-500.0,9.04e-05,2]
[347736540,1736087456570,-500.0,9.04e-05,2]
[347736541,1736087456580,-656.44,9.04e-05,2]
[347736542,1736087456591,-500.0,9.04e-05,2]
[347736543,1736087456602,-500.0,9.04e-05,2]
[347736544,1736087456612,-500.0,9.04e-05,2]
[347736545,1736087456622,-500.0,9.04e-05,2]
[347736546,1736087456632,-509.84,9.04e-05,2]
[347736547,1736087456642,-500.0,9.04e-05,2]
[347736548,1736087456651,-500.0,9.04e-05,2]
[347736549,1736087456662,-500.0,9.04e-05,2]
[347736550,1736087456672,-500.0,9.04e-05,2]
[347736551,1736087456681,-500.0,9.04e-05,2]
[347736552,1736087456691,-641.45,9.04e-05,2]
[347736553,1736087456701,-500.0,9.04e-05,2]
[347736554,1736087456711,-500.0,9.04e-05,2]
[347736555,1736087456720,-500.0,9.04e-05,2]
[347736556,1736087456730,-500.0,9.04e-05,2]
[347736557,1736087456740,-519.93,9.04e-05,2]
[347736558,1736087456750,-500.0,9.04e-05,2]
[347736559,1736087456760,-500.0,9.04e-05,2]
[347736560,1736087456769,-500.0,9.04e-05,2]
[347736561,1736087456780,-500.0,9.04e-05,2]
[347736562,1736087456790,-500.0,9.04e-05,2]
[347736563,1736087456800,-500.0,9.04e-05,2]
[347736564,1736087456810,-947.94,9.04e-05,2]
[347736565,1736087456820,-500.0,9.04e-05,2]
[347736566,1736087456830,-771.06,9.04e-05,2]
[347736567,1736087456840,-500.0,9.04e-05,2]
[347736568,1736087456850,-500.0,9.04e-05,2]
[347736569,1736087456861,-500.0,9.04e-05,2]
[347736570,1736087456871,-500.0,9.04e-05,2]
[347736571,1736087456882,-500.0,9.04e-05,2]
[347736572,1736087456891,-500.0,9.04e-05,2]
[347736573,1736087456902,-758.28,9.04e-05,2]
[347736574,1736087456912,-500.0,9.04e-05,2]
[347736575,1736087456922,-500.0,9.04e-05,2]
[347736576,1736087456932,-500.0,9.04e-05,2]
[347736577,1736087456945,-500.0,9.04e-05,2]
[347736578,1736087456955,-522.41,9.04e-05,2]
[347736579,1736087456965,-500.0,9.04e-05,2]
[347736580,1736087456975,-568.32,9.04e-05,2]
[347736581,1736087456985,-500.0,9.04e-05,2]
[347736582,1736087456996,-695.0,9.04e-05,2]
[347736583,1736087457007,-500.0,9.04e-05,2]
[347736584,1736087457017,-500.0,9.04e-05,2]
[347736585,1736087457027,-500.0,9.04e-05,2]
[347736586,1736087457039,-500.0,9.04e-05,2]
[347736587,1736087457048,-500.0,9.04e-05,2]
[347736588,1736087457059,-500.0,9.04e-05,2]
[347736589,1736087457068,-500.0,9.04e-05,2]
[347736590,1736087457078,-644.71,9.04e-05,2]
[347736591,1736087457088,-297.74597755,9.04e-05,2]
[347736592,1736087457099,-500.0,9.04e-05,2]
[347736593,1736087457109,-500.0,9.04e-05,2]
[347736594,1736087457119,-500.0,9.04e-05,2]
[347736595,1736087457129,-500.0,9.04e-05,2]
[347736596,1736087457139,-500.0,9.04e-05,2]
[347736597,1736087457150,-500.0,9.04e-05,2]
[347736598,1736087457159,-500.0,9.04e-05,2]
[347736599,1736087457170,-500.0,9.04e-05,2]
[347736600,1736087457180,-635.97,9.04e-05,2]
[347736601,1736087457191,-500.0,9.04e-05,2]
[347736602,1736087457200,-500.0,9.04e-05,2]
[347736603,1736087457210,-500.0,9.04e-05,2]
[347736604,1736087457221,-500.0,9.04e-05,2]
[347736605,1736087457232,-500.0,9.04e-05,2]
[347736606,1736087457243,-779.91,9.04e-05,2]
[347736607,1736087457253,-558.76,9.04e-05,2]
[347736608,1736087457263,-500.0,9.04e-05,2]
[347736609,1736087457274,-645.46,9.04e-05,2]
[347736610,1736087457285,-500.0,9.04e-05,2]
[347736611,1736087457295,-857.29,9.04e-05,2]
[347736612,1736087457304,-500.0,9.04e-05,2]
[347736613,1736087457315,-500.0,9.04e-05,2]
[347736614,1736087457326,-500.0,9.04e-05,2]
[347736615,1736087457335,-500.0,9.04e-05,2]
[347736616,1736087457345,-560.06,9.04e-05,2]
[347736617,1736087457356,-500.0,9.04e-05,2]
[347736618,1736087457366,-500.0,9.04e-05,2]
[347736619,1736087457376,-813.35,9.04e-05,2]
[347736620,1736087457386,-500.0,9.04e-05,2]
[347736621,1736087457396,-500.0,9.04e-05,2]
[347736622,1736087457406,-500.0,9.04e-05,2]
[347736623,1736087457416,-500.0,9.04e-05,2]
[347736624,1736087457426,-709.28,9.04e-05,2]
[347736625,1736087457436,-474.90356163,9.04e-05,2]
[347736626,1736087457445,-933.58,9.04e-05,2]
[347736627,1736087457455,-500.0,9.04e-05,2]
[347736628,1736087457465,-500.0,9.04e-05,2]
[347736629,1736087457475,-573.08,9.04e-05,2]
[347736630,1736087457485,-910.71,9.04e-05,2]
[347736631,1736087457495,-500.0,9.04e-05,2]
[347736632,1736087457505,-500.0,9.04e-05,2]
[347736633,1736087457515,-500.0,9.04e-05,2]
[347736634,1736087457525,-500.0,9.04e-05,2]
[347736635,1736087457535,-579.63,9.04e-05,2]
[347736636,1736087457545,-500.0,9.04e-05,2]
[347736637,1736087457555,-500.0,9.04e-05,2]
[347736638,1736087457566,-500.0,9.04e-05,2]
[347736639,1736087457577,-500.0,9.04e-05,2]
[347736640,1736087457587,-500.0,9.04e-05,2]
[347736641,1736087457597,-736.49,9.04e-05,2]
[347736642,1736087457607,-500.0,9.04e-05,2]
[347736643,1736087457617,-500.0,9.04e-05,2]
[347736644,1736087457627,-500.0,9.04e-05,2]
[347736645,1736087457636,-500.0,9.04e-05,2]
[347736646,1736087457646,-500.0,9.04e-05,2]
[347736647,1736087457657,-608.15,9.04e-05,2]
[347736648,1736087457666,-500.0,9.04e-05,2]
[347736649,1736087457676,-500.0,9.04e-05,2]
[347736650,1736087457687,-500.0,9.04e-05,2]
[347736651,1736087457696,-500.0,9.04e-05,2]
[347736652,1736087457706,-500.0,9.04e-05,2]
[347736653,1736087457717,-658.6,9.04e-05,2]
[347736654,1736087457727,-500.0,9.04e-05,2]
[347736655,1736087457737,-383.76646607,9.04e-05,2]
[347736656,1736087457747,-500.0,9.04e-05,2]
[347736657,1736087457757,-500.0,9.04e-05,2]
[347736658,1736087457767,-500.0,9.04e-05,2]
[347736659,1736087457778,-500.0,9.04e-05,2]
[347736660,1736087457787,-500.0,9.04e-05,2]
[347736661,1736087457798,-500.0,9.04e-05,2]
[347736662,1736087457807,-500.0,9.04e-05,2]
[347736663,1736087457817,-500.0,9.04e-05,2]
[347736664,1736087457827,-500.0,9.04e-05,2]
[347736665,1736087457837,-500.0,9.04e-05,2]
[347736666,1736087457847,-545.77,9.04e-05,2]
[347736667,1736087457857,-500.0,9.04e-05,2]
[347736668,1736087457867,-500.0,9.04e-05,2]
[347736669,1736087457876,-545.27,9.04e-05,2]
[347736670,1736087457887,-500.0,9.04e-05,2]
[347736671,1736087457899,-500.0,9.04e-05,2]
[347736672,1736087457909,-792.12,9.04e-05,2]
[347736673,1736087457919,-3029.06,9.04e-05,2]
[347736674,1736087457928,-1554.62,9.04e-05,2]
[347736675,1736087457938,-844.73,9.04e-05,2]
[347736676,1736087457950,-500.0,9.04e-05,2]
[347736677,1736087457960,-500.0,9.04e-05,2]
[347736678,1736087457970,-1642.54,9.041e-05,2]
[347736679,1736087457979,-500.0,9.041e-05,2]
[347736680,1736087457989,-3807.68,9.041e-05,2]
[347736681,1736087457998,-500.0,9.041e-05,2]
[347736682,1736087458007,-3354.98,9.041e-05,2]
[347736683,1736087458017,-2557.36,9.041e-05,2]
[347736684,1736087458027,-500.0,9.041e-05,2]
[347736685,1736087458038,-4574.93,9.041e-05,2]
[347736686,1736087458048,-500.0,9.041e-05,2]
[347736687,1736087458058,-692.96,9.041e-05,2]
[347736688,1736087458067,-563.0,9.041e-05,2]
[347736689,1736087458077,-500.0,9.041e-05,2]
[347736690,1736087458087,-4805.9,9.041e-05,2]
[347736691,1736087458097,-500.0,9.041e-05,2]
[347736692,1736087458107,-7875.64,9.041e-05,2]
[347736693,1736087458117,-500.0,9.041e-05,2]
[347736694,1736087458126,-500.0,9.041e-05,2]
[347736695,1736087458136,-500.0,9.041e-05,2]
[347736696,1736087458145,-500.0,9.041e-05,2]
[347736697,1736087458155,-500.0,9.041e-05,2]
[347736698,1736087458164,-576.43,9.041e-05,2]
[347736699,1736087458173,-500.0,9.041e-05,2]
[347736700,1736087458183,-500.0,9.041e-05,2]
[347736701,1736087458192,-613.23,9.041e-05,2]
[347736702,1736087458202,-698.39,9.041e-05,2]
[347736703,1736087458212,-1981.533,9.041e-05,2]
[347736704,1736087458221,-179.745,9.041e-05,2]
[347736705,1736087458231,-1537.2,9.041e-05,2]
[347736706,1736087458241,-500.0,9.041e-05,2]
[347736707,1736087458250,-500.0,9.041e-05,2]
[347736708,1736087458260,-2922.88,9.041e-05,2]
[347736709,1736087458270,-611.39,9.041e-05,2]
[347736710,1736087458279,-500.0,9.041e-05,2]
[347736711,1736087458289,-938.55,9.041e-05,2]
[347736712,1736087458299,-1444.28,9.041e-05,2]
[347736713,1736087458308,-500.0,9.041e-05,2]
[347736714,1736087458317,-996.14,9.041e-05,2]
[347736715,1736087458327,-533.69,9.041e-05,2]
[347736716,1736087458336,-500.0,9.041e-05,2]
[347736717,1736087458346,-602.64,9.041e-05,2]
[347736718,1736087458355,-510.46,9.041e-05,2]
[347736719,1736087458365,-5569.43,9.041e-05,2]
[347736720,1736087458374,-758.58,9.041e-05,2]
[347736721,1736087458383,-500.0,9.041e-05,2]
[347736722,1736087458392,-500.0,9.041e-05,2]
[347736723,1736087458402,-673.22,9.041e-05,2]
[347736724,1736087458412,-500.0,9.041e-05,2]
[347736725,1736087458422,-1180.17,9.041e-05,2]
[347736726,1736087458433,-500.0,9.041e-05,2]
[347736727,1736087458442,-500.0,9.041e-05,2]
[347736728,1736087458453,-1046.53,9.041e-05,2]
[347736729,1736087458462,-608.8,9.041e-05,2]
[347736730,1736087458471,-500.0,9.041e-05,2]
[347736731,1736087458483,-614.88,9.041e-05,2]
[347736732,1736087458493,-500.0,9.041e-05,2]
[347736733,1736087458502,-1270.54,9.041e-05,2]
[347736734,1736087458512,-646.03,9.041e-05,2]
[347736735,1736087458521,-500.0,9.041e-05,2]
[347736736,1736087458531,-500.0,9.041e-05,2]
[347736737,1736087458540,-500.0,9.041e-05,2]
[347736738,1736087458549,-500.0,9.041e-05,2]
[347736739,1736087458559,-1746.53,9.041e-05,2]
[347736740,1736087458569,-638.28,9.041e-05,2]
[347736741,1736087458578,-500.0,9.041e-05,2]
[347736742,1736087458588,-500.0,9.041e-05,2]
[347736743,1736087458598,-813.03,9.041e-05,2]
[347736744,1736087458607,-636.41,9.041e-05,2]
[347736745,1736087458616,-861.08,9.041e-05,2]
[347736746,1736087458626,-500.0,9.041e-05,2]
[347736747,1736087458636,-691.19,9.041e-05,2]
[347736748,1736087458646,-569.3,9.041e-05,2]
[347736749,1736087458655,-3515.39,9.041e-05,2]
[347736750,1736087458665,-1185.52,9.041e-05,2]
[347736751,1736087458674,-1147.13,9.041e-05,2]
[347736752,1736087458683,-500.0,9.041e-05,2]
[347736753,1736087458694,-500.0,9.041e-05,2]
[347736754,1736087458704,-879.06,9.041e-05,2]
[347736755,1736087458714,-1114.61,9.041e-05,2]
[347736756,1736087458725,-818.0,9.041e-05,2]
[347736757,1736087458739,-500.0,9.041e-05,2]
[347736758,1736087458755,-500.0,9.041e-05,2]
[347736759,1736087458770,-1021.84,9.041e-05,2]
[347736760,1736087458783,-500.0,9.041e-05,2]
[347736761,1736087458794,-698.7,9.041e-05,2]
[347736762,1736087458808,-624.66,9.041e-05,2]
[347736763,1736087458822,-500.0,9.041e-05,2]
[347736764,1736087458835,-738.42,9.041e-05,2]
[347736765,1736087458848,-500.0,9.041e-05,2]
[347736766,1736087458861,-605.13,9.041e-05,2]
[347736767,1736087458875,-1424.29,9.041e-05,2]
[347736768,1736087458888,-1100.5,9.041e-05,2]
[347736769,1736087458901,-500.0,9.041e-05,2]
[347736770,1736087458913,-645.23,9.041e-05,2]
[347736771,1736087458923,-500.0,9.041e-05,2]
[347736772,1736087458939,-528.75,9.041e-05,2]
[347736773,1736087458953,-906.79,9.041e-05,2]
[347736774,1736087458966,-728.95,9.041e-05,2]
[347736775,1736087458980,-691.64,9.041e-05,2]
[347736776,1736087458994,-589.99,9.041e-05,2]
[347736777,1736087459007,-500.0,9.041e-05,2]
[347736778,1736087459020,-500.0,9.041e-05,2]
[347736779,1736087459032,-1480.26,9.041e-05,2]
[347736780,1736087459047,-1775.43,9.041e-05,2]
[347736781,1736087459060,-743.22,9.041e-05,2]
[347736782,1736087459073,-500.0,9.041e-05,2]
[347736783,1736087459086,-781.44,9.041e-05,2]
[347736784,1736087459099,-699.6,9.041e-05,2]
[347736785,1736087459111,-500.0,9.041e-05,2]
[347736786,1736087459124,-968.92,9.041e-05,2]
[347736787,1736087459137,-500.0,9.041e-05,2]
[347736788,1736087459151,-616.91,9.041e-05,2]
[347736789,1736087459164,-1140.5,9.041e-05,2]
[347736790,1736087459175,-514.64,9.041e-05,2]
[347736791,1736087459186,-524.1,9.041e-05,2]
[347736792,1736087459198,-918.55,9.041e-05,2]
[347736793,1736087459209,-702.75,9.041e-05,2]
[347736794,1736087459226,-500.0,9.041e-05,2]
[347736795,1736087459238,-1033.65,9.041e-05,2]
[347736796,1736087459249,-995.5,9.041e-05,2]
[347736797,1736087459260,-1082.324567,9.041e-05,2]
[347736798,1736087459271,-2079.48,9.041e-05,2]
[347736799,1736087459284,-500.0,9.041e-05,2]
[347736800,1736087459297,-500.0,9.041e-05,2]
[347736801,1736087459310,-1050.75,9.041e-05,2]
[347736802,1736087459321,-2288.37,9.041e-05,2]
[347736803,1736087459332,-500.0,9.041e-05,2]
[347736804,1736087459342,-731.7,9.041e-05,2]
[347736805,1736087459354,-624.19,9.041e-05,2]
[347736806,1736087459366,-500.0,9.041e-05,2]
[347736807,1736087459377,-1187.11,9.041e-05,2]
[347736808,1736087459389,-757.3,9.041e-05,2]
[347736809,1736087459401,-500.0,9.041e-05,2]
[347736810,1736087459413,-621.88,9.041e-05,2]
[347736811,1736087459424,-1098.17,9.041e-05,2]
[347736812,1736087459436,-726.88,9.041e-05,2]
[347736813,1736087459448,-1226.741349,9.041e-05,2]
[347736814,1736087459460,-500.0,9.041e-05,2]
[347736815,1736087459472,-1252.46,9.041e-05,2]
[347736816,1736087459484,-500.0,9.041e-05,2]
[347736817,1736087459496,-1865.96,9.041e-05,2]
[347736818,1736087459508,-500.0,9.041e-05,2]
[347736819,1736087459520,-678.98,9.041e-05,2]
[347736820,1736087459531,-500.0,9.041e-05,2]
[347736821,1736087459545,-536.82,9.041e-05,2]
[347736822,1736087459557,-547.99,9.041e-05,2]
[347736823,1736087459569,-155.906236,9.041e-05,2]
[347736824,1736087459581,-773.79,9.041e-05,2]
[347736825,1736087459593,-3163.81,9.041e-05,2]
[347736826,1736087459605,-2381.79,9.041e-05,2]
[347736827,1736087459617,-500.0,9.041e-05,2]
[347736828,1736087459630,-640.07,9.041e-05,2]
[347736829,1736087459642,-626.77,9.041e-05,2]
[347736830,1736087459653,-1289.71,9.041e-05,2]
[347736831,1736087459664,-500.0,9.041e-05,2]
[347736832,1736087459676,-500.0,9.041e-05,2]
[347736833,1736087459688,-500.0,9.041e-05,2]
[347736834,1736087459700,-1260.65,9.041e-05,2]
[347736835,1736087459712,-723.31,9.041e-05,2]
[347736836,1736087459724,-500.0,9.041e-05,2]
[347736837,1736087459735,-760.01,9.041e-05,2]
[347736838,1736087459747,-734.13,9.041e-05,2]
[347736839,1736087459758,-1428.45,9.041e-05,2]
[347736840,1736087459772,-500.0,9.041e-05,2]
[347736841,1736087459784,-824.53,9.041e-05,2]
[347736842,1736087459795,-2038.47,9.041e-05,2]